bitfinex-derivatives/quotes_ETHF0:USTF0_20250326
["timestamp","ask_amount","ask_price","bid_price","bid_amount"]
[1743016555271,1.0088,1982.3,1982.2,1.00883]
[1743016555465,3.2078,1982.4,1982.3,1.0088]
[1743016555665,1.00862,1982.7,1982.6,1.00859]
[1743016556072,5.73662953,1982.9,1982.7,1.00856]
[1743016556073,1.00856,1982.8,1982.7,1.00856]
[1743016556274,1.0086,1982.7,1982.6,2.0179]
[1743016556470,2.9885,1982.7,1982.6,2.0179]
[1743016556670,4.21639,1982.8,1982.7,1.0086]
[1743016556874,2.99598953,1982.9,1982.8,1.00855]
[1743016557067,1.01608953,1982.9,1982.8,1.00855]
[1743016557268,1.00856,1982.8,1982.7,1.00856]
[1743016557667,1.01605953,1982.9,1982.8,1.00855]
[1743016558276,1.01611953,1982.9,1982.8,1.00855]
[1743016558479,0.00755953,1982.9,1982.8,1.00855]
[1743016558666,0.00755953,1982.9,1982.8,1.03822291]
[1743016559383,5.3171,1983.4,1983.2,1.0083]
[1743016559565,1.00832,1983.3,1983.2,1.0083]
[1743016559765,1.00833,1983.3,1983.2,1.00829]
[1743016560474,3.2078,1983.6,1983.2,6.24050309]
[1743016560780,0.00755953,1983.4,1983.3,1.00829]
[1743016560971,3.2078,1984.0,1983.3,5.80196421]
[1743016561273,1.00821,1983.5,1983.4,1.0082]
[1743016561775,1.00824,1983.4,1983.3,0.07343421]
[1743016561979,3.04164,1983.4,1983.3,0.07343421]
[1743016562286,1.00814,1983.7,1983.6,1.00812]
[1743016562668,1.00792,1984.1,1984.0,1.0079]
[1743016562973,5.72689,1984.6,1984.0,0.07343421]
[1743016563174,1.0079,1984.1,1984.0,0.07343421]
[1743016564780,1.00789,1984.1,1984.0,0.07343421]
[1743016565380,1.00789,1984.1,1984.0,1.08135421]
[1743016565770,1.00789,1984.1,1984.0,0.07343421]
[1743016565970,3.2078,1984.4,1984.2,1.00783]
[1743016566185,5.72715,1984.4,1984.0,1.08133421]
[1743016566475,1.00789,1984.1,1984.0,0.07343421]
[1743016566681,1.00789,1984.1,1984.0,1.08137421]
[1743016566985,1.00787,1984.2,1984.1,1.00789]
[1743016567481,1.00789,1984.1,1984.0,1.10317962]
[1743016567686,1.00788,1984.2,1984.1,1.00789]
[1743016567876,1.00789,1984.1,1984.0,0.11710503]
[1743016568180,4.21569,1984.1,1984.0,0.11710503]
[1743016568376,1.00793,1984.1,1984.0,1.00794]
[1743016568569,5.3414,1984.3,1984.2,1.00784]
[1743016568777,1.00786,1984.2,1984.1,1.00786]
[1743016569074,2.1336,1984.3,1983.9,2.52753953]
[1743016569075,2.1336,1984.3,1984.2,1.00784]
[1743016569275,1.00779,1984.3,1984.2,1.00782]
[1743016569678,1.00794,1984.0,1983.9,1.01552953]
[1743016569976,4.21574,1984.0,1983.9,0.00755953]
[1743016570184,1.00814,1983.6,1983.5,1.00817]
[1743016570378,1.00814,1983.6,1983.5,2.99829]
[1743016570973,2.0639,1983.9,1983.5,1.9901]
[1743016571178,4.59146953,1983.9,1983.5,3.00580953]
[1743016571483,1.00814,1983.6,1983.5,1.99765953]
[1743016571681,1.00814,1983.6,1983.5,3.00584953]
[1743016571884,2.0639,1983.7,1983.6,1.00814]
[1743016572080,3.07948953,1983.9,1983.7,1.00806]
[1743016572384,3.07947953,1983.9,1983.8,1.00804]
[1743016572588,0.00755953,1983.9,1983.8,4.21584]
[1743016572888,0.00755953,1983.9,1983.8,1.00804]
[1743016573185,0.00755953,1983.9,1983.8,3.16594]
[1743016573381,0.00755953,1983.9,1983.8,6.81894]
[1743016573584,2.0837,1984.5,1983.9,2.51993]
[1743016573788,3.15586,1984.4,1984.3,1.00777]
[1743016574287,0.98592485,1984.3,1984.2,3.17209]
[1743016574579,2.1481,1984.4,1984.3,1.00779]
[1743016574979,3.15584,1984.4,1984.3,1.00779]
[1743016575176,2.1481,1984.4,1984.3,1.02966627]
[1743016575377,1.00767,1984.6,1984.5,1.00765]
[1743016575875,1.00753,1984.9,1984.5,5.77068254]
[1743016576177,2.1481,1985.1,1985.0,1.00743]
[1743016576381,2.1481,1985.1,1984.9,1.00744]
[1743016576682,2.1481,1985.1,1985.0,1.00743]
[1743016576880,3.15548,1985.1,1985.0,0.04375254]
[1743016577878,3.15548,1985.1,1985.0,3.16038254]
[1743016578080,3.15548,1985.1,1985.0,2.15295254]
[1743016578584,6.36328,1985.1,1985.0,0.04375254]
[1743016578781,3.15548,1985.1,1985.0,0.04375254]
[1743016578982,3.15548,1985.1,1985.0,1.05118254]
[1743016580082,1.00736,1985.2,1985.1,2.1128]
[1743016580489,1.00736,1985.2,1985.1,3.12018]
[1743016580695,1.00736,1985.2,1985.1,2.1128]
[1743016580984,1.00733,1985.2,1985.1,3.16390254]
[1743016581186,3.12202,1985.3,1985.1,2.15655254]
[1743016581483,1.989,1985.6,1985.1,5.79555254]
[1743016581691,3.12201,1985.3,1985.2,1.00733]
[1743016581877,2.1147,1985.3,1985.2,3.12013]
[1743016582081,2.1147,1985.3,1985.2,3.16388254]
[1743016582688,2.1147,1985.3,1985.2,2.15655254]
[1743016582689,6.32978,1985.3,1985.2,2.15655254]
[1743016582889,6.32978,1985.3,1985.2,0.04375254]
[1743016584078,6.32978,1985.3,1984.6,2.0492]
[1743016584079,1.00758,1984.7,1984.6,2.0492]
[1743016584289,1.00758,1984.7,1984.6,4.1337]
[1743016584490,1.00757,1984.8,1984.6,5.14131]
[1743016584690,3.07487,1984.8,1984.6,5.14131]
[1743016584890,2.0673,1984.8,1984.7,3.09208]
[1743016585087,3.2078,1985.1,1984.7,5.2923]
[1743016585392,2.0673,1985.0,1984.9,1.00748]
[1743016585592,2.0673,1985.0,1984.9,2.96308]
[1743016585897,3.07473,1985.0,1984.9,2.96308]
[1743016586194,1.00742,1985.1,1984.9,1.9556]
[1743016586495,2.133,1985.2,1985.1,1.00738]
[1743016586697,3.14033,1985.2,1985.1,1.00738]
[1743016586989,2.133,1985.2,1985.1,1.00738]
[1743016587288,2.133,1985.2,1985.1,4.63638]
[1743016587492,1.00732,1985.3,1985.1,4.63634]
[1743016587493,1.0073,1985.3,1985.1,4.63634]
[1743016587692,1.0073,1985.3,1985.2,1.9556]
[1743016588096,1.0073,1985.3,1985.2,2.96293]
[1743016588289,3.14026,1985.4,1985.2,2.96288]
[1743016588491,3.14024,1985.4,1985.2,1.9556]
[1743016588790,1.00724,1985.4,1985.2,1.9556]
[1743016588991,3.06044,1985.4,1985.2,1.9556]
[1743016589185,2.0532,1985.4,1985.3,1.00728]
[1743016589586,3.2078,1985.7,1985.2,1.9556]
[1743016589893,2.0532,1985.6,1985.5,1.00718]
[1743016590087,1.9944,1985.8,1985.6,1.00713]
[1743016590393,3.06028,1985.7,1985.5,1.00714]
[1743016590592,3.06028,1985.7,1985.5,2.00965953]
[1743016590792,2.0532,1985.7,1985.6,1.00713]
[1743016591191,1.00713,1985.6,1985.5,0.00755953]
[1743016591791,1.00713,1985.6,1985.5,2.10615953]
[1743016592101,1.00703,1985.8,1985.7,1.00706]
[1743016592396,2.95892,1985.8,1985.7,1.00706]
[1743016592591,1.00699,1985.9,1985.7,3.637]
[1743016592792,1.9519,1985.9,1985.8,2.0986]
[1743016593092,1.9519,1985.9,1985.7,3.637]
[1743016593093,1.00702,1985.8,1985.7,3.637]
[1743016593702,2.9589,1985.9,1985.7,5.7356]
[1743016593901,2.9589,1985.9,1985.7,6.74266]
[1743016594506,2.9589,1985.9,1985.8,1.00702]
[1743016594507,1.9519,1985.9,1985.8,1.00702]
[1743016594691,1.00691,1986.1,1985.9,1.00697]
[1743016594892,3.01051,1986.1,1986.0,2.1598]
[1743016595197,2.51732,1986.0,1985.5,4.22251953]
[1743016595403,3.2078,1985.8,1985.5,2.16735953]
[1743016595601,3.0106,1985.9,1985.7,1.00706]
[1743016595799,1.00702,1985.8,1985.7,1.00706]
[1743016596096,4.21474,1986.0,1985.5,2.16735953]
[1743016596300,1.00697,1985.9,1985.6,2.0627]
[1743016596504,2.0036,1985.9,1985.7,6.81584]
[1743016596702,3.0106,1985.9,1985.7,6.81584]
[1743016596897,2.0036,1985.9,1985.8,1.00702]
[1743016597102,3.2078,1986.0,1985.9,1.00697]
[1743016597400,3.0105,1986.1,1985.8,2.1235]
[1743016597699,3.0105,1986.1,1985.9,3.16674]
[1743016598098,3.2078,1986.2,1985.9,2.1598]
[1743016598302,1.00692,1986.1,1986.0,3.643]
[1743016598600,2.0723,1986.1,1985.9,3.16675]
[1743016598901,3.0792,1986.1,1985.9,3.16674]
[1743016599092,1.00692,1986.0,1985.9,3.16675]
[1743016599293,2.0723,1986.1,1985.9,2.1598]
[1743016599493,1.00692,1986.0,1985.9,3.16677]
[1743016599799,2.0723,1986.1,1985.9,2.1598]
[1743016600002,2.0723,1986.1,1986.0,1.00692]
[1743016600407,2.0723,1986.1,1985.9,3.16674]
[1743016600408,3.07921,1986.1,1985.9,3.16674]
[1743016601005,3.07921,1986.1,1985.9,3.16675]
[1743016601301,3.07921,1986.1,1986.0,1.00692]
[1743016601504,6.28701,1986.1,1986.0,2.0795]
[1743016603101,6.28701,1986.1,1986.0,3.08642]
[1743016603102,6.28697,1986.1,1986.0,3.08642]
[1743016603311,5.2801,1986.1,1986.0,3.08642]
[1743016603605,2.0723,1986.1,1986.0,3.08642]
[1743016604214,1.00686,1986.2,1986.1,1.00687]
[1743016604505,1.00686,1986.2,1986.0,3.08638]
[1743016604706,1.00687,1986.1,1986.0,2.0795]
[1743016604910,2.0302,1986.3,1986.0,3.08638]
[1743016605106,1.00686,1986.2,1986.0,3.08638]
[1743016605312,2.0302,1986.1,1986.0,3.08642]
[1743016605512,1.00678,1986.3,1986.0,2.0795]
[1743016605708,2.0302,1986.3,1986.2,1.00679]
[1743016606009,3.03697,1986.3,1986.2,1.00679]
[1743016606207,2.0302,1986.3,1986.0,3.0864]
[1743016606405,3.03699,1986.3,1986.2,1.00682]
[1743016606603,1.00677,1986.4,1986.3,1.00677]
[1743016606799,2.96044,1986.4,1986.3,1.00677]
[1743016607009,1.00679,1986.3,1986.2,1.00678]
[1743016607203,1.00679,1986.3,1986.2,3.02058]
[1743016607412,2.96046,1986.4,1986.3,1.00677]
[1743016607803,1.00677,1986.3,1986.2,3.02058]
[1743016608107,2.96044,1986.4,1986.3,1.00677]
[1743016608314,1.9537,1986.4,1986.3,1.00677]
[1743016608513,3.2078,1986.5,1986.4,1.00672]
[1743016608709,5.1615,1986.5,1986.4,1.00672]
[1743016608909,6.16817,1986.5,1986.4,1.00672]
[1743016609310,6.16817,1986.5,1986.4,3.02052]
[1743016609512,5.1615,1986.5,1986.4,3.02052]
[1743016609819,1.00661,1986.7,1986.6,1.00662]
[1743016610113,1.00663,1986.6,1986.5,1.00663]
[1743016610308,1.00663,1986.6,1986.5,1.01418953]
[1743016610517,3.10418,1986.7,1986.6,1.00662]
[1743016610818,3.10418,1986.7,1986.6,3.12602]
[1743016611020,2.0976,1986.7,1986.6,3.12602]
[1743016611207,3.2078,1987.0,1986.6,2.1194]
[1743016611513,2.0976,1987.0,1986.9,1.00647]
[1743016611713,3.10406,1987.0,1986.9,1.00647]
[1743016611908,3.2078,1987.2,1986.9,2.51618]
[1743016612113,1.00637,1987.1,1987.0,3.12577]
[1743016612311,1.00637,1987.1,1987.0,2.1194]
[1743016612611,1.00637,1987.1,1987.0,3.12582]
[1743016612812,1.00637,1987.1,1987.0,3.12577]
[1743016613208,1.00637,1987.1,1987.0,2.1194]
[1743016613415,1.00637,1987.1,1987.0,3.12582]
[1743016613620,1.00637,1987.1,1987.0,2.1194]
[1743016613811,3.06507,1987.1,1987.0,2.1194]
[1743016614507,2.0587,1987.1,1986.8,2.1384]
[1743016614713,4.21427,1986.9,1986.8,2.0084]
[1743016614910,1.00647,1986.9,1986.8,3.01492]
[1743016615420,1.00647,1986.9,1986.8,2.0084]
[1743016615616,1.00647,1986.9,1986.8,3.01492]
[1743016616914,6.2729,1987.1,1987.0,1.00642]
[1743016617214,2.0587,1987.1,1987.0,1.00642]
[1743016617413,5.3339,1987.3,1987.0,1.00642]
[1743016617609,3.06902,1987.2,1987.1,1.9875]
[1743016617819,3.06902,1987.2,1987.1,2.99387]
[1743016618019,3.2078,1987.5,1987.3,1.00625]
[1743016618214,2.0627,1987.4,1987.3,1.00625]
[1743016618618,3.06896,1987.4,1987.3,1.00625]
[1743016618814,2.0627,1987.4,1987.3,1.00625]
[1743016619027,1.00619,1987.5,1987.4,1.00621]
[1743016619331,7.2828,1987.7,1987.5,1.00616]
[1743016619332,2.97681,1987.6,1987.5,1.00616]
[1743016619531,2.97681,1987.6,1987.3,2.5156]
[1743016619532,3.2078,1987.9,1987.6,1.00611]
[1743016619731,3.2078,1987.9,1987.7,2.1626]
[1743016619732,2.97671,1987.8,1987.7,2.1626]
[1743016621640,2.97671,1987.8,1987.7,3.16866]
[1743016621938,1.00599,1987.9,1987.8,1.00598]
[1743016622238,1.00599,1987.9,1987.8,4.59698]
[1743016622540,1.00595,1988.0,1987.9,1.00594]
[1743016622729,3.03195,1988.0,1987.9,2.95934]
[1743016623129,4.2137,1988.1,1988.0,1.00591]
[1743016623427,10.36661,1988.4,1988.0,1.00591]
[1743016623428,2.026,1988.2,1988.1,1.00586]
[1743016623733,1.00581,1988.2,1988.1,4.59482]
[1743016624237,1.00581,1988.2,1988.1,3.589]
[1743016624437,4.2136,1988.3,1988.1,3.589]
[1743016624629,2.026,1988.4,1988.2,1.9534]
[1743016624830,3.03174,1988.4,1988.3,1.00576]
[1743016625134,2.026,1988.4,1988.3,1.00576]
[1743016625527,6.23574,1988.6,1988.3,1.00572]
[1743016625528,1.00568,1988.5,1988.3,1.00572]
[1743016625737,1.00566,1988.5,1988.4,5.6611]
[1743016626233,3.16446,1988.5,1988.4,6.66681]
[1743016626941,2.1588,1988.5,1988.4,6.66681]
[1743016627336,1.00566,1988.5,1988.4,6.66681]
[1743016627536,4.21344,1988.6,1988.5,1.00566]
[1743016627736,1.00561,1988.6,1988.5,2.0721]
[1743016627937,1.00558,1988.7,1988.5,3.07773]
[1743016628139,1.00561,1988.6,1988.5,5.6601]
[1743016628933,1.9835,1988.7,1988.5,6.66576]
[1743016629242,4.21333,1988.8,1988.5,5.6601]
[1743016629538,3.2078,1988.8,1988.7,1.00556]
[1743016629739,1.00548,1988.9,1988.7,1.00556]
[1743016630039,1.00548,1988.9,1988.8,2.0198]
[1743016630233,1.00556,1988.7,1988.6,0.00755953]
[1743016630437,4.21336,1988.7,1988.6,0.00755953]
[1743016630936,6.35756,1988.7,1988.6,0.00755953]
[1743016631128,8.46846,1988.7,1988.6,0.00755953]
[1743016632636,4.21336,1988.7,1988.6,0.00755953]
[1743016633629,5.3631,1988.7,1988.6,0.00755953]
[1743016634741,5.72134,1989.0,1988.6,0.00755953]
[1743016634941,1.00555,1988.8,1988.7,1.00556]
[1743016635147,4.21335,1988.8,1988.7,3.02486]
[1743016635443,2.0064,1988.9,1988.7,2.0193]
[1743016635647,1.00551,1988.8,1988.7,3.02483]
[1743016636241,1.00549,1988.9,1988.8,1.00549]
[1743016637045,1.00551,1988.8,1988.7,3.02481]
[1743016637247,5.2142,1989.0,1988.8,1.0055]
[1743016637431,6.2196,1989.0,1988.9,1.9852]
[1743016637635,3.2078,1989.0,1988.9,1.9852]
[1743016638042,3.2078,1989.0,1988.6,0.00755953]
[1743016638243,3.2078,1988.7,1988.6,1.99275953]
[1743016639945,3.2078,1988.7,1988.6,0.00755953]
[1743016640339,6.7948,1988.7,1988.6,0.00755953]
[1743016641438,8.837,1988.7,1988.6,0.00755953]
[1743016643549,11.337,1988.7,1988.6,0.00755953]
[1743016643749,17.167,1988.7,1987.7,3.2078]
[1743016643949,3.2078,1988.1,1987.8,2.0509]
[1743016644249,2.0111,1988.0,1987.8,2.0509]
[1743016644843,3.2078,1987.9,1987.8,2.0509]
[1743016646452,3.21535953,1988.1,1987.8,2.0509]
[1743016647246,3.2078,1987.9,1987.8,2.0509]
[1743016648548,3.2078,1987.9,1987.7,0.00755953]
[1743016648754,4.1665,1987.8,1987.7,0.00755953]
[1743016649655,2.1027,1987.8,1987.7,0.00755953]
[1743016650560,3.2078,1987.9,1987.7,0.00755953]
[1743016651555,9.04535953,1988.1,1987.7,2.11075953]
[1743016651855,9.04535953,1988.1,1987.8,5.6542]
[1743016652056,9.04535953,1988.1,1987.9,2.0672]
[1743016653059,3.21535953,1988.1,1987.9,2.0672]
[1743016655260,3.21535953,1988.1,1988.0,2.0619]
[1743016655653,3.21535953,1988.1,1987.9,2.0672]
[1743016655856,1.9714,1988.0,1987.9,2.0672]
[1743016656652,1.9714,1988.0,1987.7,0.00755953]
[1743016656855,3.2078,1987.8,1987.7,0.00755953]
[1743016657759,3.2078,1988.0,1987.7,2.10065953]
[1743016657959,3.2078,1988.0,1987.8,2.0873]
[1743016658160,3.2078,1988.3,1987.9,2.0487]
[1743016658361,3.2078,1988.3,1988.0,2.0873]
[1743016658861,3.2078,1988.3,1988.1,1.9556]
[1743016659060,3.2078,1988.3,1988.2,2.1584]
[1743016662068,3.2078,1988.9,1988.2,7.8662]
[1743016662270,2.0075,1988.8,1988.2,5.3662]
[1743016662561,2.0075,1988.8,1988.3,40.8]
[1743016662757,2.0075,1988.8,1988.4,7.7221]
[1743016663165,2.0075,1988.8,1988.5,1.966]
[1743016663361,2.0075,1988.8,1988.6,2.0326]
[1743016664169,2.0075,1988.8,1988.4,2.1025]
[1743016664367,3.2078,1988.7,1988.4,2.1025]
[1743016664568,2.1639,1988.6,1988.5,2.089]
[1743016666057,2.1639,1988.6,1988.0,3.2078]
[1743016666261,3.2078,1988.5,1988.1,5.676]
[1743016666467,2.1639,1988.4,1988.2,2.089]
[1743016667459,5.3255,1988.7,1988.2,4.208]
[1743016667662,2.0455,1988.6,1988.3,1.9592]
[1743016667863,2.0455,1988.6,1988.4,2.1427]
[1743016668274,3.2078,1988.7,1988.4,2.1427]
[1743016668665,8.2357,1988.7,1988.4,2.1427]
[1743016668972,1.00566,1988.5,1988.4,2.1427]
[1743016671274,1.00571,1988.4,1988.3,1.9592]
[1743016671477,1.00571,1988.4,1988.3,4.0907]
[1743016674874,3.03231,1988.4,1988.3,4.0907]
[1743016676078,3.03231,1988.4,1988.3,2.1315]
[1743016676280,1.00576,1988.3,1988.2,2.119]
[1743016676582,3.03236,1988.3,1988.2,2.119]
[1743016676775,3.03236,1988.3,1988.2,4.1857]
[1743016676971,1.00576,1988.3,1988.2,8.39931]
[1743016677878,1.00576,1988.3,1988.2,7.3935]
[1743016678070,1.00576,1988.3,1988.2,8.39931]
[1743016678268,1.00571,1988.5,1988.4,1.00568]
[1743016678683,1.00571,1988.5,1988.3,3.586]
[1743016678684,1.00571,1988.4,1988.3,4.59172]
[1743016680578,1.00571,1988.4,1988.3,4.59176]
[1743016680885,1.00571,1988.4,1988.3,3.586]
[1743016681085,1.00571,1988.4,1988.3,4.59176]
[1743016681885,1.00576,1988.3,1988.2,11.98531]
[1743016682483,1.00576,1988.3,1988.2,10.9795]
[1743016682693,1.00576,1988.3,1988.2,11.98531]
[1743016683485,1.00574,1988.4,1988.3,1.00571]
[1743016684190,1.00576,1988.3,1988.2,11.98527]
[1743016684384,1.00576,1988.3,1988.2,11.98531]
[1743016685384,1.00576,1988.3,1988.2,5.19151]
[1743016685689,1.00576,1988.3,1988.2,8.77751]
[1743016687488,1.00576,1988.3,1988.2,4.1857]
[1743016687679,1.00576,1988.3,1988.2,5.19151]
[1743016687884,1.00576,1988.3,1988.2,4.1857]
[1743016688590,1.00575,1988.4,1988.3,1.00571]
[1743016688793,1.00575,1988.4,1988.3,4.21351]
[1743016689090,2.51406,1988.6,1988.3,3.2078]
[1743016689291,1.00569,1988.5,1988.4,2.0728]
[1743016689887,1.00569,1988.5,1988.2,3.12478]
[1743016689888,1.00576,1988.3,1988.2,3.12478]
[1743016690097,1.00576,1988.3,1988.2,3.12481]
[1743016690783,3.13495,1988.4,1988.3,1.00576]
[1743016691191,1.00576,1988.3,1988.2,3.12477]
[1743016691389,1.00576,1988.3,1988.2,2.119]
[1743016691592,2.51453,1988.2,1987.8,91.506]
[1743016691782,1.00596,1987.9,1987.8,58.486]
[1743016691979,1.00596,1987.9,1987.8,59.49201]
[1743016692182,1.00596,1987.9,1987.8,99.286]
[1743016692394,1.00596,1987.9,1987.8,95.7]
[1743016692591,1.00596,1987.9,1987.8,55.90601]
[1743016692785,1.00596,1987.9,1987.8,54.9]
[1743016693095,1.00601,1987.8,1987.7,0.00755953]
[1743016693297,3.17151,1987.8,1987.7,0.00755953]
[1743016699006,5.25571,1987.8,1987.7,0.00755953]
[1743016699501,3.17151,1987.8,1987.7,0.00755953]
[1743016699886,2.1655,1987.8,1987.7,1.01361953]
[1743016700090,3.17151,1987.8,1987.7,0.00755953]
[1743016700492,3.17151,1987.8,1987.7,2.12285953]
[1743016701505,2.1655,1987.8,1987.7,3.12891953]
[1743016701704,1.006,1987.9,1987.8,1.00601]
[1743016702106,1.006,1987.9,1987.8,3.09031]
[1743016702398,1.00596,1987.9,1987.8,2.0843]
[1743016702603,1.00601,1987.8,1987.7,3.12888953]
[1743016702992,1.00601,1987.8,1987.7,2.12285953]
[1743016703708,1.00601,1987.8,1987.7,0.00755953]
[1743016704902,1.00637,1987.1,1987.0,3.2078]
[1743016705102,1.00652,1986.8,1986.7,11.02922]
[1743016705307,1.00652,1986.8,1986.7,7.44322]
[1743016705709,2.0035,1987.0,1986.7,7.44323]
[1743016705909,2.0035,1987.0,1986.7,6.4367]
[1743016705910,0.00755953,1986.9,1986.7,6.4367]
[1743016706110,1.01403953,1986.9,1986.8,1.00648]
[1743016706311,1.01403953,1986.9,1986.8,4.21428]
[1743016706820,1.01403953,1986.9,1986.8,1.00648]
[1743016707108,1.01406953,1986.9,1986.8,1.00652]
[1743016707514,0.00755953,1986.9,1986.8,1.00652]
[1743016707713,0.00755953,1986.9,1986.8,4.21432]
[1743016707903,11.55323,1987.5,1987.1,1.00633]
[1743016708103,1.00626,1987.3,1987.2,2.1252]
[1743016708304,3.02794,1987.4,1987.3,1.00626]
[1743016708517,1.00624,1987.4,1987.3,1.00626]
[1743016708820,1.00621,1987.4,1987.3,3.9962]
[1743016709212,1.00621,1987.4,1987.3,45.80246]
[1743016709418,3.02788,1987.5,1987.4,1.00621]
[1743016709718,3.02788,1987.5,1987.4,3.13141]
[1743016710315,4.1504,1987.8,1987.4,5.333]
[1743016710509,2.1579,1988.2,1988.0,1.00589]
[1743016710816,2.1579,1988.2,1987.8,6.38708]
[1743016710817,1.00596,1987.9,1987.8,6.38708]
[1743016711021,1.00596,1987.9,1987.8,5.33608]
[1743016711412,2.0238,1988.2,1987.8,13.63891]
[1743016711612,2.0238,1988.2,1987.9,2.1733]
[1743016712114,1.00601,1987.8,1987.7,2.02065953]
[1743016712310,1.00601,1987.8,1987.7,2.18085953]
[1743016713022,3.02981,1987.8,1987.7,2.18085953]
[1743016713209,1.006,1987.9,1987.7,2.18085953]
[1743016713414,5.72237,1988.2,1987.7,2.18085953]
[1743016713415,1.00601,1987.8,1987.7,2.18085953]
[1743016713922,1.00601,1987.8,1987.7,5.38865953]
[1743016714216,1.00601,1987.8,1987.7,2.18085953]
[1743016714423,1.00601,1987.8,1987.7,3.18691953]
[1743016714725,1.00601,1987.8,1987.7,2.18085953]
[1743016716119,1.00601,1987.8,1987.7,0.00755953]
[1743016716712,3.08971,1987.8,1987.7,0.00755953]
[1743016717023,1.00601,1987.8,1987.7,1.01361953]
[1743016717218,1.00601,1987.8,1987.7,4.22141953]
[1743016717915,1.00601,1987.8,1987.7,3.21535953]
[1743016718221,1.00601,1987.8,1987.7,0.00755953]
[1743016718424,1.00601,1987.8,1987.7,2.12395953]
[1743016719018,1.00601,1987.8,1987.7,3.13001953]
[1743016719327,1.00601,1987.8,1987.7,2.12395953]
[1743016721225,1.00601,1987.8,1987.7,0.00755953]
[1743016721726,1.00621,1987.4,1987.3,50.729]
[1743016721927,1.00621,1987.4,1987.3,53.84726]
[1743016722227,1.00621,1987.4,1987.3,52.841]
[1743016722524,1.00621,1987.4,1987.3,50.729]
[1743016722927,1.00626,1987.3,1987.2,2.06625953]
[1743016723218,2.00905953,1987.5,1987.2,2.06625953]
[1743016723423,3.01525953,1987.5,1987.4,1.00621]
[1743016723623,1.00626,1987.4,1987.3,1.00623]
[1743016723819,1.00626,1987.4,1987.2,2.06625953]
[1743016724030,1.00625,1987.4,1987.3,1.00626]
[1743016724217,3.13505,1987.4,1987.3,1.00626]
[1743016724419,1.00625,1987.4,1987.3,4.21406]
[1743016724618,0.00755953,1987.5,1987.4,1.00621]
[1743016724820,0.00755953,1987.5,1987.4,3.06491]
[1743016726119,3.13479,1987.9,1987.8,1.00601]
[1743016726321,2.99155,1988.0,1987.9,1.00595]
[1743016726527,1.00601,1987.8,1987.7,3.10545]
[1743016726716,4.50039,1988.0,1987.5,3.2078]
[1743016726717,1.9856,1988.0,1987.5,3.2078]
[1743016726920,1.00621,1987.4,1987.3,3.2078]
[1743016727126,1.00621,1987.4,1987.2,2.10695953]
[1743016727127,1.00619,1987.5,1987.4,1.00619]
[1743016727723,1.00619,1987.5,1987.4,5.12229]
[1743016727923,1.00619,1987.5,1987.4,8.33009]
[1743016728334,1.00619,1987.5,1987.4,4.1161]
[1743016730828,1.00619,1987.5,1987.4,5.12231]
[1743016731038,1.00616,1987.6,1987.5,1.00613]
[1743016731334,3.06831,1987.6,1987.5,1.9759]
[1743016731534,1.00621,1987.4,1987.3,44.7764]
[1743016731834,1.00621,1987.4,1987.2,0.00755953]
[1743016731835,1.00626,1987.3,1987.2,0.00755953]
[1743016732030,10.47936,1987.3,1987.2,0.00755953]
[1743016732839,1.00652,1986.8,1986.7,7.29274]
[1743016733036,1.00652,1986.8,1986.7,2.1737]
[1743016733740,3.13342,1986.8,1986.7,2.1737]
[1743016734037,1.00657,1986.7,1986.6,50.73355953]
[1743016734238,3.13347,1986.7,1986.6,52.90725953]
[1743016734637,3.13347,1986.7,1986.6,50.73355953]
[1743016734940,3.13347,1986.7,1986.6,0.00755953]
[1743016736232,3.13347,1986.7,1986.6,1.01417953]
[1743016736833,3.13347,1986.7,1986.6,4.22197953]
[1743016737139,3.13347,1986.7,1986.6,1.01417953]
[1743016737335,3.13347,1986.7,1986.6,0.00755953]
[1743016737842,1.00655,1986.8,1986.7,1.00657]
[1743016738141,3.10905,1986.8,1986.7,3.07327]
[1743016738842,3.10905,1986.8,1986.7,5.19037]
[1743016739544,1.01405953,1986.9,1986.8,1.00652]
[1743016739745,1.00652,1986.8,1986.7,5.19034]
[1743016740243,0.00755953,1986.9,1986.8,1.00652]
[1743016740444,0.00755953,1986.9,1986.8,6.34982]
[1743016741245,2.51517,1987.7,1987.0,2.51598]
[1743016741544,1.00619,1987.5,1987.4,4.214]
[1743016741745,1.9627,1987.6,1987.3,1.00623]
[1743016741746,1.00621,1987.4,1987.3,1.00623]
[1743016741947,1.00621,1987.4,1987.3,3.01453]
[1743016742140,1.9627,1987.6,1987.3,2.0083]
[1743016742337,1.0062,1987.5,1987.4,1.9897]
[1743016742843,1.0062,1987.5,1987.4,2.99591]
[1743016743247,1.00614,1987.6,1987.5,1.00616]
[1743016743440,1.00608,1987.7,1987.6,1.00607]
[1743016743642,1.9627,1987.8,1987.7,1.00606]
[1743016743840,1.00601,1987.9,1987.8,1.006]
[1743016744041,1.00601,1987.8,1987.7,3.10333]
[1743016744249,1.00601,1987.8,1987.7,3.11088953]
[1743016744445,1.00601,1987.8,1987.7,5.22138953]
[1743016744648,1.00601,1987.8,1987.7,4.21535953]
[1743016744848,1.00601,1987.8,1987.7,2.10485953]
[1743016745448,3.04591,1987.8,1987.7,2.10485953]
[1743016746051,1.00599,1987.9,1987.8,1.00601]
[1743016746343,1.00601,1987.8,1987.7,3.11089953]
[1743016747248,1.00601,1987.8,1987.7,2.10485953]
[1743016747446,1.00601,1987.8,1987.7,3.11091953]
[1743016747644,1.00601,1987.8,1987.7,0.00755953]
[1743016748042,3.05741,1987.8,1987.7,0.00755953]